fUSD/lending_fUSD_20260516
["ID","MTS","AMOUNT","RATE_DAILY","PERIOD"]
[422399562,1778935868000,-546.03,0.00029201,2]
[422399553,1778935868000,-546.03,0.00029169,30]
[422399558,1778935868000,-538.91,0.00029201,2]
[422399552,1778935868000,-528.39,0.00029169,30]
[422399556,1778935868000,-2221.37,0.000292,7]
[422399560,1778935868000,-2357.64,0.00029201,2]
[422399555,1778935868000,-397.24,0.00029176,7]
[422399561,1778935868000,-528.39,0.00029201,2]
[422399559,1778935868000,-1547.18,0.00029201,2]
[422399565,1778935868000,-864.78058953,0.00029215,2]
[422399575,1778935868000,-500.0,0.00029262,18]
[422399577,1778935868000,-6652.05,0.00029326,7]
[422399564,1778935868000,-693.3919763,0.00029215,2]
[422399568,1778935868000,-528.75,0.00029232,7]
[422399567,1778935868000,-527.74,0.00029232,7]
[422399566,1778935868000,-152.06229366,0.00029224,30]
[422399572,1778935868000,-546.19,0.00029232,7]
[422399571,1778935868000,-528.5,0.00029232,7]
[422399570,1778935868000,-2357.81,0.00029232,7]
[422399573,1778935868000,-1531.86,0.00029232,7]
[422399569,1778935868000,-539.09,0.00029232,7]
[422399574,1778935868000,-1042.73396974,0.00029242,7]
[422399579,1778935868000,-200.38022994,0.0002933,2]
[422399578,1778935868000,-152.0,0.00029328,30]
[422399580,1778935868000,-3250.47,0.000294,7]
[422399581,1778935868000,-152.0,0.00029454,24]
[422399582,1778935868000,-7200.0,0.00029463,7]
[422399524,1778935868000,-1547.18,0.00029074,30]
[422399563,1778935868000,-1531.72,0.00029201,2]
[422399554,1778935868000,-1531.72,0.00029169,30]
[422399576,1778935868000,-831.0,0.00029273,4]
[422399550,1778935868000,-1547.18,0.00029169,30]
[422399517,1778935868000,-1547.18,0.00029042,7]
[422399551,1778935868000,-2357.64,0.00029169,30]
[422399521,1778935868000,-1531.72,0.00029042,7]
[422399519,1778935868000,-528.39,0.00029042,7]
[422399522,1778935868000,-528.69,0.00029074,30]
[422399527,1778935868000,-546.03,0.00029074,30]
[422399525,1778935868000,-2357.64,0.00029074,30]
[422399529,1778935868000,-5000.0,0.00029098,2]
[422399528,1778935868000,-1531.72,0.00029074,30]
[422399534,1778935868000,-528.39,0.00029105,2]
[422399531,1778935868000,-538.91,0.00029105,2]
[422399535,1778935868000,-546.03,0.00029105,2]
[422399532,1778935868000,-1547.18,0.00029105,2]
[422399536,1778935868000,-1531.72,0.00029105,2]
[422399526,1778935868000,-528.39,0.00029074,30]
[422399530,1778935868000,-528.69,0.00029105,2]
[422399543,1778935868000,-528.39,0.00029137,7]
[422399542,1778935868000,-2357.64,0.00029137,7]
[422399533,1778935868000,-2357.64,0.00029105,2]
[422399546,1778935868000,-152.0,0.00029139,23]
[422399547,1778935868000,-659.20759578,0.00029157,5]
[422399545,1778935868000,-1531.72,0.00029137,7]
[422399544,1778935868000,-546.03,0.00029137,7]
[422399541,1778935868000,-1547.18,0.00029137,7]
[422399537,1778935868000,-509.58410485,0.0002913,20]
[422399540,1778935868000,-538.91,0.00029137,7]
[422399538,1778935868000,-500.0,0.0002913,5]
[422399549,1778935868000,-538.91,0.00029169,30]
[422399548,1778935868000,-528.69,0.00029169,30]
[422399539,1778935868000,-528.69,0.00029137,7]
[422399589,1778935869000,-152.06229366,0.0002968,30]
[422399626,1778935869000,-150.0,0.00029863,60]
[422399622,1778935869000,-397.82782312,0.00029863,60]
[422399624,1778935869000,-500.0,0.00029863,60]
[422399628,1778935869000,-150.0,0.00029863,60]
[422399621,1778935869000,-500.0,0.00029863,60]
[422399629,1778935869000,-150.0,0.00029863,60]
[422399631,1778935869000,-150.0,0.00029863,60]
[422399618,1778935869000,-500.0,0.00029863,60]
[422399630,1778935869000,-500.0,0.00029863,60]
[422399619,1778935869000,-500.0,0.00029863,60]
[422399623,1778935869000,-261.82652302,0.00029863,2]
[422399620,1778935869000,-250.0,0.00029863,2]
[422399627,1778935869000,-286.1406342,0.00029863,60]
[422399646,1778935869000,-500.0,0.00029863,60]
[422399632,1778935869000,-500.0,0.00029863,60]
[422399634,1778935869000,-150.0,0.00029863,60]
[422399633,1778935869000,-150.0,0.00029863,60]
[422399637,1778935869000,-150.0,0.00029863,60]
[422399640,1778935869000,-500.0,0.00029863,60]
[422399635,1778935869000,-500.0,0.00029863,60]
[422399638,1778935869000,-500.0,0.00029863,60]
[422399636,1778935869000,-150.0,0.00029863,60]
[422399641,1778935869000,-401.12019631,0.00029863,60]
[422399643,1778935869000,-500.0,0.00029863,60]
[422399639,1778935869000,-150.4298928,0.00029863,60]
[422399642,1778935869000,-500.0,0.00029863,60]
[422399644,1778935869000,-500.0,0.00029863,60]
[422399611,1778935869000,-500.0,0.00029863,60]
[422399625,1778935869000,-187.19406762,0.00029863,60]
[422399614,1778935869000,-250.0,0.00029863,2]
[422399590,1778935869000,-169.19,0.00029691,3]
[422399615,1778935869000,-500.0,0.00029863,60]
[422399591,1778935869000,-152.0,0.00029769,25]
[422399583,1778935869000,-1000.0,0.000295,2]
[422399584,1778935869000,-1569.946778,0.000295,2]
[422399586,1778935869000,-1055.65268643,0.00029534,5]
[422399585,1778935869000,-150.0,0.00029534,2]
[422399588,1778935869000,-1644.59354647,0.00029534,5]
[422399587,1778935869000,-1041.45277369,0.00029534,5]
[422399593,1778935869000,-665.50673797,0.000298,30]
[422399603,1778935869000,-150.0,0.00029863,60]
[422399605,1778935869000,-150.0,0.00029863,60]
[422399592,1778935869000,-3250.47,0.000298,7]
[422399594,1778935869000,-831.0,0.00029807,4]
[422399596,1778935869000,-500.0,0.00029863,60]
[422399595,1778935869000,-397.24,0.00029815,7]
[422399610,1778935869000,-175.35341026,0.00029863,60]
[422399604,1778935869000,-150.0,0.00029863,60]
[422399599,1778935869000,-500.0,0.00029863,60]
[422399601,1778935869000,-327.1119899,0.00029863,60]
[422399602,1778935869000,-150.0,0.00029863,60]
[422399600,1778935869000,-500.0,0.00029863,60]
[422399598,1778935869000,-500.0,0.00029863,60]
[422399606,1778935869000,-150.0,0.00029863,60]
[422399608,1778935869000,-204.74993125,0.00029863,60]
[422399613,1778935869000,-500.0,0.00029863,60]
[422399607,1778935869000,-154.22701254,0.00029863,60]
[422399617,1778935869000,-250.0,0.00029863,2]
[422399612,1778935869000,-500.0,0.00029863,60]
[422399609,1778935869000,-500.0,0.00029863,60]
[422399655,1778935869000,-500.0,0.00029863,60]
[422399616,1778935869000,-500.0,0.00029863,60]
[422399597,1778935869000,-500.0,0.00029863,60]
[422399647,1778935869000,-500.0,0.00029863,60]
[422399666,1778935869000,-150.0,0.00029863,2]
[422399656,1778935869000,-500.0,0.00029863,60]
[422399686,1778935869000,-200.0,0.0003,11]
[422399688,1778935869000,-200.0,0.0003,11]
[422399692,1778935869000,-366.99796987,0.0003,30]
[422399690,1778935869000,-323.099999,0.0003,11]
[422399687,1778935869000,-200.0,0.0003,11]
[422399689,1778935869000,-200.0,0.0003,11]
[422399691,1778935869000,-87877.0,0.0003,2]
[422399695,1778935869000,-100740.78971213,0.0003,30]
[422399693,1778935869000,-150.0,0.0003,2]
[422399694,1778935869000,-366.99796987,0.0003,30]
[422399696,1778935869000,-2000.0,0.0003,3]
[422399699,1778935869000,-634.0,0.0003,7]
[422399698,1778935869000,-525.08455304,0.0003,30]
[422399697,1778935869000,-4708.47181063,0.0003,30]
[422399677,1778935869000,-20171.83415881,0.0003,2]
[422399701,1778935869000,-2221.37,0.0003,7]
[422399708,1778935869000,-200.0,0.0003,2]
[422399700,1778935869000,-158.0,0.0003,8]
[422399707,1778935869000,-1088.54,0.0003,30]
[422399705,1778935869000,-650.0,0.0003,2]
[422399702,1778935869000,-366.99796987,0.0003,30]
[422399704,1778935869000,-54560.18445129,0.0003,10]
[422399703,1778935869000,-6160.8416246,0.0003,3]
[422399710,1778935869000,-193.725,0.0003,22]
[422399706,1778935869000,-200.0,0.0003,2]
[422399709,1778935869000,-200.0,0.0003,2]
[422399712,1778935869000,-1500.0,0.0003,2]
[422399714,1778935869000,-200.0,0.0003,2]
[422399713,1778935869000,-1000.0,0.0003,14]
[422399645,1778935869000,-500.0,0.00029863,60]
[422399711,1778935869000,-200.0,0.0003,2]
[422399680,1778935869000,-500.0,0.0003,2]
[422399681,1778935869000,-165.49923737,0.0003,2]
[422399682,1778935869000,-8710.72041311,0.0003,2]
[422399683,1778935869000,-585.85625576,0.0003,4]
[422399658,1778935869000,-500.0,0.00029863,60]
[422399657,1778935869000,-500.0,0.00029863,60]
[422399651,1778935869000,-500.0,0.00029863,60]
[422399648,1778935869000,-500.0,0.00029863,60]
[422399649,1778935869000,-500.0,0.00029863,60]
[422399652,1778935869000,-500.0,0.00029863,60]
[422399653,1778935869000,-631.42284881,0.00029863,60]
[422399654,1778935869000,-500.0,0.00029863,60]
[422399659,1778935869000,-500.0,0.00029863,60]
[422399663,1778935869000,-317.0,0.00029863,60]
[422399667,1778935869000,-289.9102584,0.00029863,2]
[422399664,1778935869000,-150.0,0.00029863,2]
[422399672,1778935869000,-240.77300292,0.0002999,2]
[422399661,1778935869000,-500.0,0.00029863,60]
[422399650,1778935869000,-500.0,0.00029863,60]
[422399668,1778935869000,-150.0,0.00029863,2]
[422399665,1778935869000,-150.0,0.00029863,2]
[422399678,1778935869000,-1120.68215868,0.0003,2]
[422399675,1778935869000,-108812.25223187,0.0003,5]
[422399673,1778935869000,-163.6,0.00029999,7]
[422399676,1778935869000,-10000.0,0.0003,10]
[422399684,1778935869000,-7577.07497615,0.0003,2]
[422399679,1778935869000,-1845.37660932,0.0003,2]
[422399674,1778935869000,-162.0,0.0003,3]
[422399660,1778935869000,-500.0,0.00029863,60]
[422399670,1778935869000,-289.25,0.000299,30]
[422399671,1778935869000,-1000.0,0.00029904,7]
[422399669,1778935869000,-80074.43742446,0.000299,2]
[422399685,1778935869000,-311.30093681,0.0003,5]
[422399662,1778935869000,-500.0,0.00029863,60]
[422399755,1778935870000,-472.33,0.00030136,7]
[422399752,1778935870000,-472.33,0.00030136,30]
[422399751,1778935870000,-200.0,0.00030136,2]
[422399750,1778935870000,-200.0,0.00030136,2]
[422399748,1778935870000,-200.0,0.0003013,15]
[422399749,1778935870000,-2000.0,0.00030136,2]
[422399747,1778935870000,-200.0,0.0003013,15]
[422399746,1778935870000,-200.0,0.0003013,15]
[422399753,1778935870000,-472.33,0.00030136,7]
[422399744,1778935870000,-200.0,0.0003013,15]
[422399745,1778935870000,-200.0,0.0003013,15]
[422399758,1778935870000,-200.0,0.00030137,2]
[422399765,1778935870000,-500.0,0.00030137,120]
[422399756,1778935870000,-193.03845054,0.00030136,2]
[422399757,1778935870000,-703.63,0.00030137,2]
[422399760,1778935870000,-1869.47,0.00030137,30]
[422399759,1778935870000,-2000.0,0.00030137,7]
[422399763,1778935870000,-500.0,0.00030137,120]
[422399762,1778935870000,-500.29823857,0.00030137,120]
[422399764,1778935870000,-500.0,0.00030137,120]
[422399767,1778935870000,-500.0,0.00030137,120]
[422399766,1778935870000,-500.0,0.00030137,120]
[422399769,1778935870000,-500.0,0.00030137,120]
[422399742,1778935870000,-200.31950545,0.0003013,15]
[422399754,1778935870000,-472.33,0.00030136,6]
[422399743,1778935870000,-200.0,0.0003013,15]
[422399724,1778935870000,-150.0,0.00030037,2]
[422399740,1778935870000,-308.4107244,0.0003013,15]
[422399716,1778935870000,-1088.54,0.00030025,30]
[422399717,1778935870000,-197.91555615,0.0003003,5]
[422399715,1778935870000,-1000.0,0.0003,7]
[422399723,1778935870000,-150.0,0.00030036,2]
[422399722,1778935870000,-150.0,0.00030036,2]
[422399719,1778935870000,-299.30229324,0.0003003,2]
[422399721,1778935870000,-210.05692268,0.0003003,2]
[422399720,1778935870000,-3400.65204067,0.0003003,2]
[422399718,1778935870000,-1498.88064888,0.0003003,2]
[422399725,1778935870000,-150.0,0.00030037,2]
[422399726,1778935870000,-150.0,0.00030037,2]
[422399768,1778935870000,-500.0,0.00030137,120]
[422399735,1778935870000,-643.92403267,0.0003013,2]
[422399727,1778935870000,-150.0,0.00030037,2]
[422399734,1778935870000,-13435.41232881,0.0003013,2]
[422399732,1778935870000,-1088.54,0.000301,30]
[422399729,1778935870000,-1088.54,0.00030075,30]
[422399731,1778935870000,-300.0,0.000301,28]
[422399728,1778935870000,-1088.54,0.0003005,30]
[422399730,1778935870000,-152.0,0.00030084,26]
[422399733,1778935870000,-1088.54,0.00030125,30]
[422399736,1778935870000,-204.84750702,0.0003013,2]
[422399737,1778935870000,-644407.96837906,0.0003013,7]
[422399739,1778935870000,-300.0,0.0003013,30]
[422399738,1778935870000,-12378.72293402,0.0003013,7]
[422399741,1778935870000,-200.0,0.0003013,15]
[422399771,1778935870000,-300.2,0.00030137,8]
[422399761,1778935870000,-1000.0,0.00030137,30]
[422399772,1778935870000,-1385.85050145,0.00030137,120]
[422399806,1778935870000,-200.0,0.00030137,2]
[422399802,1778935870000,-389.06,0.00030137,120]
[422399801,1778935870000,-1000.0,0.00030137,120]
[422399804,1778935870000,-200.0,0.00030137,2]
[422399811,1778935870000,-1518.3,0.000302,2]
[422399807,1778935870000,-500.0,0.00030139,19]
[422399812,1778935870000,-15776.70609957,0.000302,2]
[422399805,1778935870000,-400.62322221,0.00030137,14]
[422399809,1778935870000,-1088.54,0.00030175,30]
[422399810,1778935870000,-152.0,0.00030178,120]
[422399808,1778935870000,-1088.54,0.0003015,30]
[422399816,1778935870000,-1088.54,0.000302,30]
[422399815,1778935870000,-401.9,0.000302,2]
[422399825,1778935870000,-152.7305281,0.00030231,7]
[422399814,1778935870000,-180.18515747,0.000302,120]
[422399813,1778935870000,-361.057931,0.000302,2]
[422399823,1778935870000,-175.93766608,0.00030231,2]
[422399818,1778935870000,-160.0,0.00030206,120]
[422399819,1778935870000,-1215.0,0.00030213,120]
[422399817,1778935870000,-150.0,0.00030205,2]
[422399821,1778935870000,-152.037651,0.00030231,7]
[422399822,1778935870000,-181.65309312,0.00030231,7]
[422399820,1778935870000,-437.4,0.00030214,2]
[422399770,1778935870000,-151.20305388,0.00030137,5]
[422399826,1778935870000,-156.59632303,0.00030231,7]
[422399803,1778935870000,-330.0,0.00030137,15]
[422399800,1778935870000,-1000.0,0.00030137,120]
[422399824,1778935870000,-230.34090641,0.00030231,7]
[422399794,1778935870000,-873.41,0.00030137,120]
[422399776,1778935870000,-300.0,0.00030137,2]
[422399792,1778935870000,-152.06229366,0.00030137,30]
[422399780,1778935870000,-400.0,0.00030137,2]
[422399777,1778935870000,-300.0,0.00030137,2]
[422399782,1778935870000,-550.0,0.00030137,2]
[422399774,1778935870000,-150.0,0.00030137,120]
[422399779,1778935870000,-400.0,0.00030137,2]
[422399773,1778935870000,-782.6230565,0.00030137,120]
[422399775,1778935870000,-152.2567,0.00030137,2]
[422399781,1778935870000,-303.0,0.00030137,2]
[422399783,1778935870000,-550.0,0.00030137,2]
[422399785,1778935870000,-500.0,0.00030137,2]
[422399784,1778935870000,-418.0,0.00030137,2]
[422399778,1778935870000,-292.0,0.00030137,2]
[422399796,1778935870000,-1000.0,0.00030137,120]
[422399786,1778935870000,-500.0,0.00030137,2]
[422399799,1778935870000,-1000.0,0.00030137,120]
[422399797,1778935870000,-1000.0,0.00030137,120]
[422399798,1778935870000,-1000.0,0.00030137,120]
[422399788,1778935870000,-1000.75641501,0.00030137,120]
[422399789,1778935870000,-933.53782075,0.00030137,120]
[422399790,1778935870000,-930.17689104,0.00030137,120]
[422399793,1778935870000,-1075.70649967,0.00030137,2]
[422399791,1778935870000,-930.00884455,0.00030137,120]
[422399795,1778935870000,-1000.0,0.00030137,120]
[422399787,1778935870000,-482.0,0.00030137,2]
[422399869,1778935871000,-1000.0,0.0003052,2]
[422399857,1778935871000,-2501.0,0.00030494,30]
[422399874,1778935871000,-152.06229366,0.00030594,30]
[422399873,1778935871000,-457.7506995,0.00030573,7]
[422399870,1778935871000,-1000.0,0.0003052,2]
[422399875,1778935871000,-292.0,0.00030643,120]
[422399876,1778935871000,-967.90964838,0.0003065,2]
[422399867,1778935871000,-1000.0,0.00030518,2]
[422399868,1778935871000,-1000.0,0.0003052,2]
[422399864,1778935871000,-1000.0,0.00030518,2]
[422399865,1778935871000,-1000.0,0.00030518,2]
[422399858,1778935871000,-1314.0,0.00030494,30]
[422399866,1778935871000,-1000.0,0.00030518,2]
[422399872,1778935871000,-1000.0,0.0003052,2]
[422399884,1778935871000,-152.0,0.00030715,28]
[422399877,1778935871000,-967.90964836,0.0003065,2]
[422399880,1778935871000,-1762.72586879,0.0003065,2]
[422399879,1778935871000,-1762.7258688,0.0003065,2]
[422399883,1778935871000,-500.0,0.00030697,120]
[422399885,1778935871000,-200.0,0.00030742,2]
[422399878,1778935871000,-967.90964836,0.0003065,2]
[422399888,1778935871000,-200.0,0.00030743,2]
[422399881,1778935871000,-1762.72586879,0.0003065,2]
[422399889,1778935871000,-158.0,0.00030773,120]
[422399886,1778935871000,-200.0,0.00030742,2]
[422399882,1778935871000,-4314.36,0.0003067,5]
[422399860,1778935871000,-594.0,0.00030494,30]
[422399887,1778935871000,-200.0,0.00030743,2]
[422399871,1778935871000,-1000.0,0.0003052,2]
[422399859,1778935871000,-1043.0,0.00030494,30]
[422399832,1778935871000,-233.41999803,0.00030231,5]
[422399828,1778935871000,-186.18152232,0.00030231,7]
[422399891,1778935871000,-236.52117407,0.00030822,30]
[422399827,1778935871000,-154.16800864,0.00030231,7]
[422399829,1778935871000,-223.7754829,0.00030231,7]
[422399831,1778935871000,-231.78928419,0.00030231,7]
[422399830,1778935871000,-187.12973899,0.00030231,7]
[422399833,1778935871000,-223.15629812,0.00030231,2]
[422399835,1778935871000,-155.10066185,0.00030231,2]
[422399834,1778935871000,-151.26246008,0.00030231,7]
[422399837,1778935871000,-2754.1,0.00030239,2]
[422399836,1778935871000,-501.58,0.00030237,7]
[422399849,1778935871000,-178.0,0.00030433,120]
[422399848,1778935871000,-175.03,0.00030411,120]
[422399850,1778935871000,-200.0,0.00030437,2]
[422399839,1778935871000,-724.0,0.00030259,30]
[422399842,1778935871000,-983.0,0.00030259,30]
[422399841,1778935871000,-3684.0,0.00030259,30]
[422399838,1778935871000,-297.37,0.00030244,120]
[422399846,1778935871000,-152.0,0.00030399,27]
[422399847,1778935871000,-632.0,0.00030408,120]
[422399844,1778935871000,-831.0,0.00030341,5]
[422399843,1778935871000,-1029.0,0.00030259,30]
[422399840,1778935871000,-2452.0,0.00030259,30]
[422399852,1778935871000,-200.0,0.00030438,2]
[422399862,1778935871000,-340.0,0.00030494,30]
[422399854,1778935871000,-397.26089247,0.00030455,7]
[422399863,1778935871000,-1000.0,0.00030518,2]
[422399851,1778935871000,-200.0,0.00030437,2]
[422399861,1778935871000,-1918.0,0.00030494,30]
[422399853,1778935871000,-200.0,0.00030438,2]
[422399855,1778935871000,-1044.0,0.00030488,30]
[422399893,1778935871000,-433.26330133,0.0003084,2]
[422399845,1778935871000,-5000.0,0.00030371,10]
[422399890,1778935871000,-250.0,0.000308,30]
[422399927,1778935871000,-227.93350886,0.00031143,7]
[422399926,1778935871000,-516.82834349,0.00031143,7]
[422399931,1778935871000,-172.76914267,0.00031143,7]
[422399930,1778935871000,-249.67087929,0.00031143,7]
[422399941,1778935871000,-503.0,0.00031223,120]
[422399942,1778935871000,-344.55222899,0.00031231,7]
[422399932,1778935871000,-297.68549936,0.00031143,7]
[422399933,1778935871000,-176.72317437,0.00031143,7]
[422399940,1778935871000,-302.5,0.000312,120]
[422399939,1778935871000,-160.0,0.000312,7]
[422399935,1778935871000,-6652.05,0.00031192,7]
[422399938,1778935871000,-160.0,0.000312,7]
[422399936,1778935871000,-377.47521083,0.00031196,7]
[422399934,1778935871000,-242.4515707,0.00031143,7]
[422399937,1778935871000,-160.0,0.000312,7]
[422399944,1778935871000,-2452.0,0.00031259,30]
[422399954,1778935871000,-304.98249964,0.00031268,7]
[422399955,1778935871000,-354.60000472,0.00031268,7]
[422399950,1778935871000,-163.0,0.00031267,120]
[422399951,1778935871000,-362.1567753,0.00031268,7]
[422399946,1778935871000,-983.0,0.00031259,30]
[422399953,1778935871000,-433.75306555,0.00031268,7]
[422399943,1778935871000,-724.0,0.00031259,30]
[422399947,1778935871000,-1029.0,0.00031259,30]
[422399952,1778935871000,-406.92350896,0.00031268,7]
[422399948,1778935871000,-449.71,0.00031259,7]
[422399949,1778935871000,-719.0,0.00031263,120]
[422399945,1778935871000,-3684.0,0.00031259,30]
[422399901,1778935871000,-150.0,0.00031011,2]
[422399925,1778935871000,-220.48570676,0.00031143,7]
[422399924,1778935871000,-243.69701714,0.00031143,7]
[422399856,1778935871000,-249.0,0.00030488,30]
[422399923,1778935871000,-232.21089585,0.00031143,7]
[422399922,1778935871000,-235.34142956,0.00031143,7]
[422399897,1778935871000,-151.0,0.00031,5]
[422399900,1778935871000,-7283.01,0.00031,14]
[422399892,1778935871000,-500.0,0.00030822,120]
[422399895,1778935871000,-167.0,0.00030997,120]
[422399899,1778935871000,-150.0,0.00031,120]
[422399896,1778935871000,-14279.85643841,0.00031,5]
[422399898,1778935871000,-1934.52231501,0.00031,2]
[422399903,1778935871000,-152.0,0.0003103,29]
[422399906,1778935871000,-200.0,0.00031049,2]
[422399914,1778935871000,-294.77,0.00031096,2]
[422399904,1778935871000,-151.014,0.00031041,120]
[422399915,1778935871000,-272.08,0.00031096,2]
[422399905,1778935871000,-500.0,0.00031044,21]
[422399894,1778935871000,-831.0,0.00030875,6]
[422399911,1778935871000,-544.0,0.00031072,120]
[422399920,1778935871000,-231.12410216,0.00031143,7]
[422399916,1778935871000,-210.85723855,0.00031143,7]
[422399921,1778935871000,-247.3694563,0.00031143,7]
[422399917,1778935871000,-267.76785877,0.00031143,7]
[422399929,1778935871000,-281.53671009,0.00031143,7]
[422399919,1778935871000,-164.39458257,0.00031143,7]
[422399928,1778935871000,-237.59852457,0.00031143,7]
[422399902,1778935871000,-9345.8141748,0.00031026,2]
[422399913,1778935871000,-200.0,0.00031096,2]
[422399918,1778935871000,-284.47852458,0.00031143,7]
[422399907,1778935871000,-200.0,0.00031049,2]
[422399912,1778935871000,-167.0,0.00031094,120]
[422399910,1778935871000,-200.0,0.0003105,2]
[422399908,1778935871000,-152.06229366,0.0003105,30]
[422399909,1778935871000,-200.0,0.0003105,2]
[422399986,1778935872000,-626.46850806,0.00031268,7]
[422399980,1778935872000,-306.80078346,0.00031268,7]
[422399990,1778935872000,-395.39924756,0.00031268,7]
[422399992,1778935872000,-995.36032575,0.00031268,7]
[422399991,1778935872000,-429.47451741,0.00031268,7]
[422399998,1778935872000,-350.6084113,0.00031268,5]
[422399996,1778935872000,-356.20394783,0.00031268,7]
[422399997,1778935872000,-319.52071614,0.00031268,7]
[422399994,1778935872000,-324.44126139,0.00031268,7]
[422399995,1778935872000,-347.00970955,0.00031268,7]
[422400001,1778935872000,-152.0,0.00031345,30]
[422399993,1778935872000,-378.90000032,0.00031268,7]
[422400003,1778935872000,-200.0,0.0003136,2]
[422400000,1778935872000,-191.0,0.00031269,120]
[422400013,1778935872000,-46825.3883463,0.00031379,2]
[422400002,1778935872000,-200.0,0.0003136,2]
[422400005,1778935872000,-200.0,0.00031361,2]
[422400006,1778935872000,-5327.2540666,0.00031379,2]
[422400004,1778935872000,-200.0,0.00031361,2]
[422400010,1778935872000,-19099.3955465,0.00031379,2]
[422400009,1778935872000,-846.2974379,0.00031379,2]
[422400011,1778935872000,-179.5789497,0.00031379,2]
[422400008,1778935872000,-249.8642207,0.00031379,2]
[422400012,1778935872000,-469.0129238,0.00031379,2]
[422399988,1778935872000,-992.44487147,0.00031268,7]
[422399999,1778935872000,-557.40442386,0.00031268,7]
[422400007,1778935872000,-661.9626049,0.00031379,2]
[422399969,1778935872000,-341.35962172,0.00031268,7]
[422399989,1778935872000,-383.36643,0.00031268,7]
[422399956,1778935872000,-337.28799921,0.00031268,7]
[422399960,1778935872000,-342.64812732,0.00031268,7]
[422399957,1778935872000,-302.07943162,0.00031268,7]
[422399958,1778935872000,-330.30269361,0.00031268,7]
[422399959,1778935872000,-413.00740135,0.00031268,7]
[422399962,1778935872000,-360.93743924,0.00031268,7]
[422399965,1778935872000,-320.16846167,0.00031268,7]
[422399963,1778935872000,-366.86426034,0.00031268,7]
[422399964,1778935872000,-419.85577848,0.00031268,7]
[422399961,1778935872000,-445.79108524,0.00031268,7]
[422399966,1778935872000,-344.19837727,0.00031268,7]
[422399968,1778935872000,-313.05833083,0.00031268,7]
[422399978,1778935872000,-359.40422504,0.00031268,7]
[422400015,1778935872000,-831.0,0.00031409,6]
[422399971,1778935872000,-327.3685793,0.00031268,7]
[422399977,1778935872000,-303.33504955,0.00031268,7]
[422399975,1778935872000,-343.04906251,0.00031268,7]
[422399974,1778935872000,-327.48073905,0.00031268,7]
[422399976,1778935872000,-407.80383242,0.00031268,2]
[422399972,1778935872000,-361.5695948,0.00031268,7]
[422399970,1778935872000,-317.19125246,0.00031268,7]
[422399973,1778935872000,-329.006668,0.00031268,7]
[422399979,1778935872000,-389.43790059,0.00031268,7]
[422399982,1778935872000,-337.71455719,0.00031268,7]
[422399984,1778935872000,-799.48226822,0.00031268,7]
[422399983,1778935872000,-401.03975157,0.00031268,7]
[422399981,1778935872000,-319.29835196,0.00031268,7]
[422399987,1778935872000,-404.32917526,0.00031268,7]
[422400014,1778935872000,-282.0991459,0.00031379,2]
[422399967,1778935872000,-315.28573216,0.00031268,7]
[422400024,1778935872000,-594.0,0.00031494,30]
[422400048,1778935872000,-168.31634616,0.00031751,7]
[422400039,1778935872000,-500.0,0.00031692,120]
[422400054,1778935872000,-164.64211191,0.00031751,2]
[422400052,1778935872000,-168.45863393,0.00031751,2]
[422400059,1778935872000,-159.8992,0.00031751,7]